fUST/lending_fUST_20240531
["ID","MTS","AMOUNT","RATE_DAILY","PERIOD"]
[328244632,1717096252047,-4759.98448179,0.0002255,2]
[328244633,1717096252056,-166.666666,0.00022944,2]
[328244634,1717096252065,-3856.03377348,0.00023,2]
[328244635,1717096252075,-206.5257489,0.00023,2]
[328244636,1717096252084,-2775.16970239,0.00023,2]
[328244637,1717096252093,-166.666666,0.00023456,2]
[328244638,1717096252102,-623.48214103,0.0002348,2]
[328244639,1717096252111,-1100.49107843,0.000239,2]
[328244640,1717096252120,-166.666666,0.00023969,2]
[328244641,1717096252129,-1000.0,0.00024,4]
[328244642,1717096252139,-3003.72759733,0.00024,2]
[328244643,1717096252148,-166.666666,0.00024482,2]
[328244644,1717096252158,-620.17410705,0.00024654,2]
[328244645,1717096252167,-200.0,0.00024658,15]
[328244646,1717096252176,-380.0,0.00024658,2]
[328244647,1717096252185,-5600.0,0.000247,9]
[328244648,1717096252194,-401.42084757,0.00025,2]
[328244649,1717096252203,-22879.08364244,0.00025,2]
[328244650,1717096252212,-241.83265717,0.00025703,2]
[328244651,1717096252298,-620.00870535,0.00025887,2]
[328244652,1717096252308,-151.0,0.00026027,2]
[328244653,1717096252317,-151.0,0.00026027,2]
[328244654,1717096252326,-151.0,0.00026027,2]
[328244655,1717096252335,-151.679847,0.00026027,2]
[328244656,1717096252345,-3000.0,0.000265,2]
[328244657,1717096252355,-3000.0,0.0002651,2]
[328244658,1717096252364,-3000.0,0.0002652,2]
[328244659,1717096252373,-3000.0,0.0002653,2]
[328244660,1717096252386,-3000.0,0.0002654,2]
[328244661,1717096252396,-3000.0,0.0002655,2]
[328244662,1717096252405,-3000.0,0.0002656,2]
[328244663,1717096252414,-3000.0,0.0002657,2]
[328244664,1717096252424,-3000.0,0.0002658,2]
[328244665,1717096252433,-3000.0,0.0002659,2]
[328244666,1717096252442,-3000.0,0.000266,2]
[328244667,1717096252452,-3000.0,0.0002661,2]
[328244668,1717096252461,-3000.0,0.0002662,2]
[328244669,1717096252471,-3000.0,0.0002663,2]
[328244670,1717096252480,-3000.0,0.0002664,2]
[328244671,1717096252490,-3000.0,0.0002665,2]
[328244672,1717096252500,-3000.0,0.0002666,2]
[328244673,1717096252509,-3000.0,0.0002667,2]
[328244674,1717096252518,-3000.0,0.0002668,2]
[328244675,1717096252527,-3000.0,0.0002669,2]
[328244676,1717096252536,-3000.0,0.000267,2]
[328244677,1717096252546,-3000.0,0.0002671,2]
[328244678,1717096252556,-3000.0,0.0002672,2]
[328244679,1717096252565,-3000.0,0.0002673,2]
[328244680,1717096252574,-3000.0,0.0002674,2]
[328244681,1717096252583,-3000.0,0.0002675,2]
[328244682,1717096252592,-3000.0,0.0002676,2]
[328244683,1717096252601,-3000.0,0.0002677,2]
[328244684,1717096252610,-3000.0,0.0002678,2]
[328244685,1717096252619,-3000.0,0.0002679,2]
[328244686,1717096252628,-3000.0,0.000268,2]
[328244687,1717096252638,-3000.0,0.0002681,2]
[328244688,1717096252646,-3000.0,0.0002682,2]
[328244689,1717096252656,-3000.0,0.0002683,2]
[328244690,1717096252664,-3000.0,0.0002684,2]
[328244691,1717096252673,-174.279447,0.00026849,2]
[328244692,1717096252682,-3000.0,0.0002685,2]
[328244693,1717096252692,-3000.0,0.0002686,2]
[328244694,1717096252701,-3000.0,0.0002687,2]
[328244695,1717096252710,-3000.0,0.0002688,2]
[328244696,1717096252719,-3000.0,0.0002689,2]
[328244697,1717096252730,-3000.0,0.000269,2]
[328244698,1717096252739,-3000.0,0.0002691,2]
[328244699,1717096252748,-3000.0,0.0002692,2]
[328244700,1717096252757,-3000.0,0.0002693,2]
[328244701,1717096252766,-3000.0,0.0002694,2]
[328244702,1717096252775,-3000.0,0.0002695,2]
[328244703,1717096252784,-5486.847454,0.0002696,2]
[328244704,1717096252792,-2121.79600195,0.00027,15]
[328244705,1717096252801,-2711.16,0.000271,3]
[328244706,1717096252811,-2711.16,0.000271,3]
[328244707,1717096252820,-2711.16,0.000271,3]
[328244708,1717096252828,-2711.16,0.000271,3]
[328244709,1717096252838,-2711.16,0.000271,3]
[328244710,1717096252847,-2711.16,0.000271,3]
[328244711,1717096252855,-2711.16,0.000271,3]
[328244712,1717096252864,-2711.16,0.000271,3]
[328244713,1717096252872,-2711.16,0.000271,3]
[328244714,1717096252881,-2711.16,0.000271,3]
[328244715,1717096252890,-2711.16,0.000271,3]
[328244716,1717096252898,-2711.16,0.000271,3]
[328244717,1717096252907,-2711.16,0.000271,3]
[328244718,1717096252916,-2711.16,0.000271,3]
[328244719,1717096252925,-2711.16,0.000271,3]
[328244720,1717096252934,-2711.16,0.000271,3]
[328244721,1717096252942,-2711.16,0.000271,3]
[328244722,1717096252951,-2711.16,0.000271,3]
[328244723,1717096252960,-2711.16,0.000271,3]
[328244724,1717096252969,-2711.16,0.000271,3]
[328244725,1717096252978,-500.0,0.00027397,2]
[328244726,1717096252988,-500.0,0.00027397,2]
[328244727,1717096252997,-500.0,0.00027397,2]
[328244728,1717096253006,-500.0,0.00027397,2]
[328244729,1717096253016,-500.0,0.00027397,2]
[328244730,1717096253025,-500.0,0.00027397,2]
[328244731,1717096253035,-500.0,0.00027397,2]
[328244732,1717096253044,-500.0,0.00027397,2]
[328244733,1717096253053,-500.0,0.00027397,2]
[328244734,1717096253062,-500.0,0.00027397,2]
[328244735,1717096253071,-500.0,0.00027397,2]
[328244736,1717096253080,-500.0,0.00027397,2]
[328244737,1717096253089,-436.05545261,0.00027397,2]
[328244738,1717096253098,-500.0,0.00027397,2]
[328244739,1717096253107,-500.0,0.00027397,2]
[328244740,1717096253117,-500.0,0.00027397,2]
[328244741,1717096253126,-500.0,0.00027397,2]
[328244742,1717096253136,-500.76516492,0.00027397,2]
[328244743,1717096253145,-500.0,0.00027397,2]
[328244744,1717096253155,-500.0,0.00027397,2]
[328244745,1717096253164,-500.0,0.00027397,2]
[328244746,1717096253173,-500.0,0.00027397,2]
[328244747,1717096253182,-500.0,0.00027397,2]
[328244748,1717096253191,-500.0,0.00027397,2]
[328244749,1717096253200,-500.0,0.00027397,2]
[328244750,1717096253210,-500.0,0.00027397,2]
[328244751,1717096253219,-500.0,0.00027397,2]
[328244752,1717096253228,-500.0,0.00027397,2]
[328244753,1717096253238,-500.0,0.00027397,2]
[328244754,1717096253247,-500.0,0.00027397,2]
[328244755,1717096253256,-500.0,0.00027397,2]
[328244756,1717096253265,-500.0,0.00027397,2]
[328244757,1717096253275,-500.0,0.00027397,2]
[328244758,1717096253284,-500.0,0.00027397,2]
[328244759,1717096253293,-500.0,0.00027397,2]
[328244760,1717096253302,-500.0,0.00027397,2]
[328244761,1717096253311,-500.0,0.00027397,2]
[328244762,1717096253320,-500.0,0.00027397,2]
[328244763,1717096253329,-500.0,0.00027397,2]
[328244764,1717096253340,-500.0,0.00027397,2]
[328244765,1717096253349,-500.0,0.00027397,2]
[328244766,1717096253359,-500.0,0.00027397,2]
[328244767,1717096253370,-500.0,0.00027397,2]
[328244768,1717096253383,-500.0,0.00027397,2]
[328244769,1717096253393,-500.0,0.00027397,2]
[328244770,1717096253403,-500.0,0.00027397,2]
[328244771,1717096253413,-500.0,0.00027397,2]
[328244772,1717096253423,-500.0,0.00027397,2]
[328244773,1717096253432,-500.0,0.00027397,2]
[328244774,1717096253441,-500.0,0.00027397,2]
[328244775,1717096253452,-500.0,0.00027397,2]
[328244776,1717096253464,-500.0,0.00027397,2]
[328244777,1717096253474,-500.0,0.00027397,2]
[328244778,1717096253483,-500.0,0.00027397,2]
[328244779,1717096253566,-500.0,0.00027397,2]
[328244780,1717096253576,-500.0,0.00027397,2]
[328244781,1717096253586,-500.0,0.00027397,2]
[328244782,1717096253595,-500.0,0.00027397,2]
[328244783,1717096253604,-500.0,0.00027397,2]
[328244784,1717096253614,-500.0,0.00027397,2]
[328244785,1717096253623,-500.0,0.00027397,2]
[328244786,1717096253633,-500.0,0.00027397,2]
[328244787,1717096253642,-500.0,0.00027397,2]
[328244788,1717096253652,-500.0,0.00027397,2]
[328244789,1717096253661,-500.0,0.00027397,2]
[328244790,1717096253670,-500.0,0.00027397,2]
[328244791,1717096253679,-500.0,0.00027397,2]
[328244792,1717096253688,-500.0,0.00027397,2]
[328244793,1717096253697,-500.0,0.00027397,2]
[328244794,1717096253706,-500.0,0.00027397,2]
[328244795,1717096253715,-500.0,0.00027397,2]
[328244796,1717096253724,-500.0,0.00027397,2]
[328244797,1717096253733,-500.0,0.00027397,2]
[328244798,1717096253743,-500.0,0.00027397,2]
[328244799,1717096253752,-500.0,0.00027397,2]
[328244800,1717096253761,-500.0,0.00027397,2]
[328244801,1717096253770,-500.0,0.00027397,2]
[328244802,1717096253780,-500.0,0.00027397,2]
[328244803,1717096253790,-500.0,0.00027397,2]
[328244804,1717096253799,-500.0,0.00027397,2]
[328244805,1717096253808,-375.54394586,0.00027397,2]
[328244806,1717096253818,-500.0,0.00027397,2]
[328244807,1717096253827,-500.0,0.00027397,2]
[328244808,1717096253837,-500.0,0.00027397,2]
[328244809,1717096253847,-500.0,0.00027397,2]
[328244810,1717096253859,-500.0,0.00027397,2]
[328244811,1717096253870,-500.0,0.00027397,2]
[328244812,1717096253880,-500.0,0.00027397,2]
[328244813,1717096253890,-500.0,0.00027397,2]
[328244814,1717096253901,-438.2761963,0.00027397,2]
[328244815,1717096253910,-500.0,0.00027397,2]
[328244816,1717096253919,-500.0,0.00027397,2]
[328244817,1717096253929,-500.0,0.00027397,2]
[328244818,1717096253939,-250.46819039,0.00027397,2]
[328244819,1717096271588,1153.52232717,9.999e-05,2]
[328244820,1717096284963,2682.95056097,9.999e-05,2]
[328244821,1717096290413,231.16656322,9.999e-05,2]
[328244825,1717097139451,2072.76346295,9.999e-05,2]
[328244828,1717097152578,1689.91885098,9.999e-05,2]
[328244915,1717097432828,-3446.35,0.00014313,2]
[328244916,1717097432838,-286.04727348,0.00015,2]
[328244917,1717097432850,-396.41184932,0.00018343,2]
[328244918,1717097432860,-22196.41334469,0.00018442,2]
[328244919,1717097432873,-316.23475701,0.00018442,2]
[328244966,1717097440119,-43225.20069266,0.00018442,2]
[328244967,1717097440130,-24900.0,0.00018443,2]
[328244968,1717097440140,-868.13762706,0.000189,2]
[328244969,1717097440149,-396.4118493,0.00018966,2]
[328244970,1717097440159,-488.42757265,0.00019178,2]
[328244971,1717097440169,-500.0,0.00019178,2]
[328244972,1717097440179,-500.0,0.00019178,2]
[328244973,1717097440190,-378.0,0.00019178,2]
[328244974,1717097440199,-1808.92909104,0.00019178,2]
[328244975,1717097440210,-1808.92909104,0.00019178,2]
[328244976,1717097440220,-500.0,0.00019178,2]
[328244977,1717097440229,-500.0,0.00019178,2]
[328244978,1717097440239,-1808.92909104,0.00019178,2]
[328244979,1717097440249,-500.0,0.00019178,2]
[328244980,1717097440259,-385.0405137,0.00019178,2]
[328244981,1717097440270,-1808.92909104,0.00019178,2]
[328244982,1717097440280,-593.82111973,0.00019178,2]
[328244983,1717097440290,-1808.92909104,0.00019178,2]
[328244984,1717097440299,-1808.92909104,0.00019178,2]
[328244985,1717097440309,-1808.92909104,0.00019178,2]
[328244986,1717097440319,-1808.92909104,0.00019178,2]
[328244987,1717097440328,-1808.92909104,0.00019178,2]
[328244988,1717097440340,-1808.92909104,0.00019178,2]
[328244989,1717097440349,-1808.92909104,0.00019178,2]
[328244990,1717097440360,-1808.92909104,0.00019178,2]
[328244991,1717097440369,-1808.92909104,0.00019178,2]
[328244992,1717097440380,-1808.92909104,0.00019178,2]
[328244993,1717097440390,-1808.92909104,0.00019178,2]
[328244994,1717097440400,-1808.92909104,0.00019178,2]
[328244995,1717097440410,-1808.92909104,0.00019178,2]
[328244996,1717097440420,-1808.92909104,0.00019178,2]
[328244997,1717097440430,-1808.92909104,0.00019178,2]
[328244998,1717097440569,-1808.92909104,0.00019178,2]
[328244999,1717097440584,-1808.92909104,0.00019178,2]
[328245000,1717097440595,-1808.92909104,0.00019178,2]
[328245001,1717097440605,-1808.92909104,0.00019178,2]
[328245002,1717097440616,-1808.92909104,0.00019178,2]
[328245003,1717097440626,-1808.92909104,0.00019178,2]
[328245004,1717097440636,-1808.92909104,0.00019178,2]
[328245005,1717097440646,-1808.92909104,0.00019178,2]
[328245006,1717097440656,-1808.92909104,0.00019178,2]
[328245007,1717097440666,-1808.92909104,0.00019178,2]
[328245008,1717097440676,-1808.92909104,0.00019178,2]
[328245009,1717097440688,-1808.92909104,0.00019178,2]
[328245010,1717097440700,-1808.92909104,0.00019178,2]
[328245011,1717097440710,-1808.92909104,0.00019178,2]
[328245012,1717097440719,-1808.92909104,0.00019178,2]
[328245013,1717097440728,-1808.92909104,0.00019178,2]
[328245014,1717097440738,-1808.92909104,0.00019178,2]
[328245015,1717097440747,-396.4118493,0.00019588,2]
[328245016,1717097440757,-166.7920133,0.00019592,2]
[328245017,1717097440766,-894.90499887,0.0001969,2]
[328245018,1717097440780,-2150.46673278,0.0001969,2]
[328245019,1717097440790,-218.01433145,0.00019691,2]
[328245020,1717097440799,-166.7920133,0.00019746,2]
[328245021,1717097440809,-166.7920133,0.000199,2]
[328245022,1717097440818,-1352.70946957,0.0002,2]
[328245023,1717097440829,-528.06456025,0.0002,4]
[328245024,1717097440838,-166.102937,0.00020559,2]
[328245025,1717097440850,-2069.42823541,0.00021,2]
[328245026,1717097440859,-10000.0,0.00021918,2]
[328245027,1717097440869,-166.666666,0.00021918,2]
[328245028,1717097440878,-285.0,0.00022,2]
[328245029,1717097440888,-166.666666,0.00022559,2]
[328245030,1717097440898,-206.5257489,0.00023,2]
[328245031,1717097440907,-166.666666,0.000232,2]
[328245032,1717097440917,-166.666666,0.00023841,2]
[328245033,1717097440926,-868.13762706,0.000239,2]
[328245034,1717097440937,-166.666666,0.00024482,2]
[328245035,1717097440946,-380.0,0.00024658,2]
[328245036,1717097440955,-200.0,0.00024658,15]
[328245037,1717097440965,-22879.08364244,0.00025,2]
[328245038,1717097440974,-401.42084757,0.00025,2]
[328245039,1717097440983,-150.0,0.000265,2]
[328245040,1717097440992,-174.279447,0.00026849,2]
[328245041,1717097441002,-4230.52943513,0.00027232,2]
[328245042,1717097441011,-282.0,0.000273,2]
[328245043,1717097441020,-1198.51130379,0.000273,3]
[328245078,1717097442946,-761.56258503,0.000244,2]
[328245079,1717097442956,-21239.41,0.0002729,3]
[328245080,1717097442967,-970.68869621,0.000273,3]
[328245081,1717097442976,-2169.2,0.000273,3]
[328245082,1717097442986,-2169.2,0.000273,3]
[328245084,1717097442996,-2169.2,0.000273,3]
[328245085,1717097443005,-2169.2,0.000273,3]
[328245086,1717097443015,-771.80036751,0.000273,3]
[328245087,1717097443027,-692.16295415,0.000273,3]
[328245088,1717097443038,-705.23667834,0.000273,3]
[328245089,1717097443048,-2169.2,0.000273,3]
[328245090,1717097443058,-2169.2,0.000273,3]
[328245091,1717097443068,-1856.56332166,0.000273,3]
[328245099,1717097443989,-312.63667834,0.000273,3]
[328245101,1717097443999,-2169.2,0.000273,3]
[328245102,1717097444008,-1396.08175993,0.000273,3]
[328245104,1717097444020,-392.1959995,0.000273,3]
[328245105,1717097444033,-380.92224057,0.000273,3]
[328245106,1717097444043,-86.90058686,0.000273,3]
[328245148,1717097500164,157.45451219,9.999e-05,2]
[328245151,1717097523220,488.71677662,9.999e-05,2]
[328245154,1717098137759,157.45451219,9.999e-05,2]
[328245155,1717098331805,312.73975107,0.00013605,2]
[328245160,1717098507754,364.06938659,0.00012858,2]
[328245199,1717098632461,-417.66792,0.00017121,2]
[328245201,1717098632471,-10524.46149726,0.00017146,2]
[328245202,1717098632480,-33682.26373049,0.00017146,2]
[328245203,1717098632491,-32055.58506387,0.00017146,2]
[328245204,1717098632500,-13767.2860947,0.00017147,2]
[328245206,1717098632509,-160.82481763,0.00018048,2]
[328245208,1717098632518,-9573.60369169,0.00018149,2]
[328245209,1717098632527,-319.59188939,0.0001815,2]
[328245210,1717098632536,-652.33270289,0.000185,2]
[328245212,1717098632545,-833.86879846,0.000189,2]
[328245213,1717098632554,-1904.91504217,0.00018978,2]
[328245214,1717098632563,-163.73354267,0.00019078,2]
[328245216,1717098632573,-6304.98572879,0.00019175,2]
[328245217,1717098632584,-1107.24339048,0.00019175,2]
[328245218,1717098632593,-194.75660952,0.00019176,2]
[328245219,1717098632605,-1063.40804746,0.00019176,2]
[328245220,1717098632614,-881.85062782,0.00019177,2]
[328245221,1717098632624,-2100.75003744,0.00019178,7]
[328245222,1717098632634,-450.94409828,0.00019178,2]
[328245223,1717098632646,-1276.28691498,0.00019178,2]
[328245224,1717098632655,-782.89308502,0.00019178,2]
[328245234,1717098638520,-944.33792824,0.00019178,2]
[328245235,1717098638530,-50.60733019,0.00019178,2]
[328245256,1717098641642,-1676.62368307,0.00019178,2]
[328245257,1717098641651,-1417.06927224,0.00019178,2]
[328245258,1717098641754,-310.16174102,0.00019178,2]
[328245259,1717098641763,-1727.23101326,0.00019178,2]
[328245260,1717098641772,-1727.23101326,0.00019178,2]
[328245261,1717098641781,-1727.23101326,0.00019178,2]
[328245262,1717098641791,-1727.23101326,0.00019178,2]
[328245263,1717098641801,-1727.23101326,0.00019178,2]
[328245264,1717098641810,-1727.23101326,0.00019178,2]
[328245265,1717098641819,-1727.23101326,0.00019178,2]
[328245266,1717098641828,-1727.23101326,0.00019178,2]
[328245267,1717098641838,-1727.23101326,0.00019178,2]
[328245268,1717098641847,-1393.03678895,0.00019178,2]
[328245317,1717098643770,-334.19422431,0.00019178,2]
[328245318,1717098643779,-1727.23101326,0.00019178,2]
[328245319,1717098643788,-1727.23101326,0.00019178,2]
[328245320,1717098643797,-500.0,0.00019178,2]
[328245321,1717098643806,-451.94204237,0.00019178,2]
[328245322,1717098643815,-1727.23101326,0.00019178,2]
[328245323,1717098643824,-500.0,0.00019178,2]
[328245324,1717098643834,-1727.23101326,0.00019178,2]
[328245325,1717098643843,-500.0,0.00019178,2]
[328245326,1717098643852,-1727.23101326,0.00019178,2]
[328245327,1717098643861,-500.0,0.00019178,2]
[328245328,1717098643870,-1727.23101326,0.00019178,2]
[328245329,1717098643879,-500.0,0.00019178,2]
[328245331,1717098643888,-1727.23101326,0.00019178,2]
[328245332,1717098643897,-1727.23101326,0.00019178,2]
[328245333,1717098643907,-327.27897547,0.00019178,2]
[328245376,1717098646566,-1399.95203779,0.00019178,2]
[328245378,1717098646577,-1727.23101326,0.00019178,2]
[328245379,1717098646586,-1727.23101326,0.00019178,2]
[328245381,1717098646596,-1727.23101326,0.00019178,2]
[328245383,1717098646605,-1727.23101326,0.00019178,2]
[328245385,1717098646615,-500.0,0.00019178,2]
[328245387,1717098646625,-1727.23101326,0.00019178,2]
[328245389,1717098646634,-1727.23101326,0.00019178,2]
[328245391,1717098646643,-1727.23101326,0.00019178,2]
[328245392,1717098646652,-1727.23101326,0.00019178,2]
[328245393,1717098646661,-1727.23101326,0.00019178,2]
[328245394,1717098646673,-1727.23101326,0.00019178,2]
[328245395,1717098646682,-1727.23101326,0.00019178,2]
[328245396,1717098646691,-1727.23101326,0.00019178,2]
[328245397,1717098646701,-1727.23101326,0.00019178,2]
[328245398,1717098646711,-1727.23101326,0.00019178,2]
[328245399,1717098646721,-1727.23101326,0.00019178,2]
[328245400,1717098646730,-1635.78937138,0.00019178,2]
[328245401,1717098646739,-1635.78937138,0.00019178,2]
[328245402,1717098646748,-1635.78937138,0.00019178,2]
[328245403,1717098646758,-1635.78937138,0.00019178,2]
[328245404,1717098646767,-1635.78937138,0.00019178,2]
[328245405,1717098646776,-1635.78937138,0.00019178,2]
[328245406,1717098646786,-1635.78937138,0.00019178,2]
[328245407,1717098646795,-1635.78937138,0.00019178,2]
[328245408,1717098646804,-302.46779228,0.00019178,2]
[328245409,1717098646834,-65737.84879436,0.00019177,2]
[328245410,1717098646843,-1333.3215791,0.00019178,2]
[328245411,1717098646853,-1635.78937138,0.00019178,2]
[328245412,1717098646863,-1635.78937138,0.00019178,2]
[328245413,1717098646872,-1635.78937138,0.00019178,2]
[328245414,1717098646881,-1635.78937138,0.00019178,2]
[328245415,1717098646891,-1635.78937138,0.00019178,2]
[328245416,1717098646901,-1635.78937138,0.00019178,2]
[328245417,1717098646910,-1635.78937138,0.00019178,2]
[328245418,1717098646919,-1635.78937138,0.00019178,2]
[328245419,1717098646930,-22759.30210611,0.00019178,2]
[328245420,1717098646942,-719.79,0.00019178,2]
[328245421,1717098646957,-1281.25608014,0.00019178,2]
[328245422,1717098646965,-24760.34818625,0.00019178,2]
[328245423,1717098646975,-500.0,0.00019178,2]
[328245424,1717098646984,-500.0,0.00019178,2]
[328245425,1717098646993,-152.07763527,0.00019178,2]
[328245426,1717098647002,-500.0,0.00019178,2]
[328245427,1717098647012,-235.0,0.00019178,2]
[328245428,1717098647021,-165.2441,0.00019178,2]
[328245429,1717098647030,-167.65055,0.00019178,2]
[328245430,1717098647040,-160.8248176,0.00019305,2]
[328245431,1717098647049,-1352.70946957,0.0002,2]
[328245432,1717098647059,-15619.01640991,0.0002,2]
[328245433,1717098647068,-528.06456025,0.0002,4]
[328245434,1717098647077,-3000.0,0.00020547,2]
[328245435,1717098647086,-202.04662443,0.00020547,2]
[328245436,1717098647096,-160.8248176,0.00020561,2]
[328245437,1717098647105,-237.676899,0.00021,2]
[328245438,1717098647114,-18208.87209873,0.00021,2]
[328245439,1717098647124,-160.8248176,0.00021818,2]
[328245440,1717098647137,-166.666666,0.00021918,2]
[328245441,1717098647146,-5081.1204561,0.00021918,2]
[328245442,1717098647156,-285.0,0.00022,2]
[328245443,1717098647165,-166.666666,0.00022431,2]
[328245444,1717098647178,-182.62215083,0.00022897,7]
[328245445,1717098647188,-5340.95782184,0.00022897,2]
[328245446,1717098647198,-166.666666,0.00022944,2]
[328245447,1717098647208,-206.5257489,0.00023,2]
[328245448,1717098647220,-166.666666,0.00023456,2]
[328245449,1717098647230,-833.86879846,0.000239,2]
[328245450,1717098647239,-166.666666,0.00023969,2]
[328245451,1717098647249,-761.56258503,0.000244,2]
[328245452,1717098647258,-166.666666,0.00024482,2]
[328245453,1717098647268,-155.18690618,0.00024568,2]
[328245454,1717098647277,-260.0,0.00024657,3]
[328245455,1717098647286,-401.42084757,0.00025,2]
[328245456,1717098647295,-22879.08364244,0.00025,2]
[328245457,1717098647305,-417.66792,0.00025682,2]
[328245458,1717098647314,-171.534296,0.00026849,2]
[328245459,1717098647323,-4230.52943513,0.00026927,2]
[328245460,1717098647333,-151.0,0.00027,2]
[328245461,1717098647342,-456.9241108,0.000273,2]
[328245462,1717098647352,-154.93802479,0.000273,2]
[328245463,1717098647361,-282.0,0.000273,2]
[328245464,1717098647370,-1929.84,0.000273,3]
[328245465,1717098647379,-1929.84,0.000273,3]
[328245466,1717098647388,-1929.84,0.000273,3]
[328245467,1717098647397,-1929.84,0.000273,3]
[328245468,1717098647406,-1929.84,0.000273,3]
[328245469,1717098647415,-1929.84,0.000273,3]
[328245470,1717098647426,-1929.84,0.000273,3]
[328245471,1717098647435,-1929.84,0.000273,3]
[328245472,1717098647444,-1929.84,0.000273,3]
[328245473,1717098647453,-1929.84,0.000273,3]
[328245474,1717098647463,-1929.84,0.000273,3]
[328245475,1717098647472,-1929.84,0.000273,3]
[328245476,1717098647482,-1929.84,0.000273,3]
[328245477,1717098647493,-1929.84,0.000273,3]
[328245478,1717098647503,-1929.84,0.000273,3]
[328245479,1717098647513,-1929.84,0.000273,3]
[328245480,1717098647522,-1929.84,0.000273,3]
[328245481,1717098647533,-1929.84,0.000273,3]
[328245482,1717098647542,-1929.84,0.000273,3]
[328245483,1717098647551,-1929.84,0.000273,3]
[328245484,1717098647561,-500.0,0.00027397,2]
[328245485,1717098647573,-500.0,0.00027397,2]
[328245486,1717098647583,-500.0,0.00027397,2]
[328245487,1717098647593,-500.0,0.00027397,2]
[328245488,1717098647603,-500.0,0.00027397,2]
[328245489,1717098647612,-500.0,0.00027397,2]
[328245490,1717098647622,-500.0,0.00027397,2]
[328245491,1717098647631,-500.0,0.00027397,2]
[328245492,1717098647642,-500.0,0.00027397,2]
[328245493,1717098647651,-593.47981955,0.00027397,2]
[328245494,1717098647661,-500.0,0.00027397,2]
[328245495,1717098647670,-500.0,0.00027397,2]
[328245496,1717098647680,-500.0,0.00027397,2]
[328245497,1717098647689,-500.0,0.00027397,2]
[328245498,1717098647698,-500.0,0.00027397,2]
[328245499,1717098647708,-500.0,0.00027397,2]
[328245500,1717098647719,-500.0,0.00027397,2]
[328245501,1717098647729,-500.0,0.00027397,2]
[328245502,1717098647739,-500.0,0.00027397,2]
[328245503,1717098647749,-500.0,0.00027397,2]
[328245504,1717098647758,-500.0,0.00027397,2]
[328245505,1717098647768,-500.0,0.00027397,2]
[328245506,1717098647777,-500.0,0.00027397,2]
[328245507,1717098647785,-561.54804787,0.00027397,2]
[328245508,1717098647794,-614.0,0.00027397,5]
[328245509,1717098647803,-88888.0,0.000274,3]
[328245510,1717098647813,-151.0,0.000274,2]
[328245511,1717098647821,-201.859979,0.000274,2]
[328245512,1717098647831,-201.859979,0.000274,2]
[328245513,1717098647839,-151.0,0.000274,2]
[328245514,1717098647848,-151.0,0.000274,2]
[328245515,1717098647857,-151.0,0.000274,2]
[328245516,1717098647866,-151.0,0.000274,2]
[328245517,1717098647875,-151.0,0.000274,2]
[328245518,1717098647884,-151.0,0.000274,2]
[328245519,1717098647893,-151.0,0.000274,2]
[328245520,1717098647902,-151.0,0.000274,2]
[328245521,1717098647911,-746.736057,0.000274,2]
[328245522,1717098647920,-746.736057,0.000274,2]
[328245523,1717098647932,-151.0,0.000274,2]
[328245524,1717098647942,-151.0,0.000274,2]
[328245525,1717098647951,-151.0,0.000274,2]
[328245526,1717098647961,-151.0,0.000274,2]
[328245527,1717098647970,-896.50695997,0.00027496,2]
[328245528,1717098647980,-1170.82156658,0.00027496,2]
[328245529,1717098647989,-2404.21274999,0.00027496,2]
[328245530,1717098647998,-312.65893706,0.00027496,2]
[328245531,1717098648007,-230.89467572,0.00027496,2]